Cogmind - Beta 16 @@@ ROGUE MODE // 2025.12.17 @ 01:49:30 Player: AngelSpirit Result: Destroyed by Swarm Drone with Compact Gauss Rifle Performance ------------- Evolutions (9) 4500 Regions Visited (20) 4000 Robots Destroyed (261) 1305 Value Destroyed (14875) 14875 Prototype IDs (48) 960 Alien Tech Used (5) 1000 Bonus (13361) 13361 TOTAL SCORE: 40001 Bonus ------- High Alert Combat Kills 2630 Follower Combat Kills 1827 Entered Garrisons 200 Network Hubs Disabled 200 Built Enhanced Grunts 300 A7 Reached Mainframe 300 Met R17 at Cetus 500 Used Core Reset Matrix 3000 Met R17 at Research 2000 Scanned by Researcher 500 Met Sigix 2000 Friendly Fire -96 Cogmind --------- Core Integrity 0/1600 Matter 220/300 Energy 54/100 System Corruption 3% Temperature Cool (0) Movement Core (50) Location -1/Access Parts ------- > --- POWER (2) -------- (None) > --- PROPULSION (6) --- (None) > --- UTILITY (13) ----- Experimental Optical Array Experimental Signal Interpreter Hacking Suite > --- WEAPON (4) ------- (None) > --- INVENTORY (5) ---- Sigix Broadsword Sigix Containment Pod Peak State ------------ > --- POWER ------------ Light Antimatter Reactor > --- PROPULSION ------- Biometal Leg Biometal Leg Experimental Myomer Leg Centrium Leg Heavy Shield Leg > --- UTILITY ---------- High-capacity Storage Unit Experimental Optical Array Experimental Signal Interpreter Advanced Targeting Computer Advanced Melee Analysis Suite Nanoactuators Advanced Phase Shifter Layered Medium Armor Plating Hacking Suite Improved System Shield Advanced System Shield Improved Corruption Screen > --- WEAPON ----------- Hypervelocity Railgun Hypervelocity Railgun Sigix Broadsword > --- INVENTORY -------- Light Quantum Reactor Improved Gyrokinetic Inverter Improved Linear Gravjet Antigrav Array Antigrav Array Combat Linear Gravjet Compact Matter Pod Advanced Dynamic Insulation System Subatomic Replicator Terrabomb Hypervelocity Railgun Helical Railgun Fusion Bomb Launcher Advanced Remote Datajack Sigix Containment Pod [Rating: 185] Favorites ----------- Power Fission Core Engine Ion Engine Power Core Fission Core Reactor Light Antimatter Reactor Propulsion Flexi-carbon Leg Leg Flexi-carbon Leg Wheel Compact Wheel Hover Unit Antigrav Array Flight Unit Xenon Bombardment Thruster Utility Large Storage Unit Device Nanoactuators Storage Large Storage Unit Processor Experimental Signal Interpreter Hackware Improved System Shield Protection Improved Medium Armor Plating Artifact Phase Armor Weapon Hypervelocity Mass Driver Energy Gun Advanced Variable Charge Gun Energy Cannon Subdweller Beam Cannon Ballistic Gun Heavy Battle Rifle Ballistic Cannon Hypervelocity Mass Driver Launcher Smartbomb Launcher Special Weapon Improved Plasma Cutter Impact Weapon Mace Slashing Weapon Molecular Scythe Piercing Weapon Enhanced Force Lance Build | -11 -10 -10 -8 -8 -6 -6 -6 -6 -5 -5 -5 -5 -5 -4 -4 -4 -3 -3 -2 -1 ------- Run | Yrd Mat Sub Rec Scr Fac Was Fac Gar Fac Ext Cet Arc Hub Fac Was Fac Res Qua Res Acc Slots Evolved 18 | . . . . . 8 . . . 2 . . . . 2 . . 2 . 2 2 Power 1 | . . . . . . . . . 1 . . . . . . . . . . . Propulsion 4 | . . . . . 2 . . . . . . . . 1 . . 1 . . . Utility 11 | . . . . . 5 . . . 1 . . . . 1 . . 1 . 1 2 Weapon 2 | . . . . . 1 . . . . . . . . . . . . . 1 . Parts Attached 311 | 6 4 17 6 1 8 1 10 39 4 17 5 2 11 33 1 21 40 46 21 18 Power 37 | 1 . 1 1 . . . 2 7 1 . . 1 . 5 1 1 4 6 6 . Engine 8 | 1 . 1 1 . . . 2 3 . . . . . . . . . . . . Core 7 | . . . . . . . . 4 1 . . . . 1 . 1 . . . . Reactor 22 | . . . . . . . . . . . . 1 . 4 1 . 4 6 6 . Propulsion 72 | 2 . 4 3 . 2 1 2 6 1 4 . . 4 7 . 5 13 5 5 8 Treads . | . . . . . . . . . . . . . . . . . . . . . Leg 27 | . . . . . 1 . . 6 1 4 . . 4 6 . . . . . 5 Wheel 14 | 2 . 4 3 . 1 1 2 . . . . . . 1 . . . . . . Hover 22 | . . . . . . . . . . . . . . . . 4 5 5 5 3 Flight 9 | . . . . . . . . . . . . . . . . 1 8 . . . Utility 124 | 1 2 6 . . 5 . 4 9 2 9 2 1 5 13 . 11 15 26 10 3 Device 49 | . 1 2 . . 1 . 1 4 1 1 . . 3 7 . 2 7 11 6 2 Storage 10 | 1 1 . . . . . . . . 1 . . 1 . . 2 1 3 . . Processor 19 | . . . . . . . 2 . . 1 . . . 1 . 5 3 3 3 1 Hackware 9 | . . . . . 2 . . . . . . . 1 . . 1 . 5 . . Protection 35 | . . 4 . . 2 . 1 5 1 6 2 1 . 5 . 1 4 2 1 . Artifact 2 | . . . . . . . . . . . . . . . . . . 2 . . Weapon 78 | 2 2 6 2 1 1 . 2 17 . 4 3 . 2 8 . 4 8 9 . 7 Energy Gun 15 | 2 1 1 . . . . . 3 . . 1 . . . . 2 2 2 . 1 Energy Cannon 12 | . . 2 1 1 . . . 3 . 2 . . . 1 . 1 1 . . . Ballistic Gun 21 | . . 2 1 . 1 . . 5 . . 1 . 1 3 . . 2 . . 5 Ballistic Cannon 11 | . 1 . . . . . 2 3 . 1 . . . 3 . . . 1 . . Launcher 7 | . . 1 . . . . . 2 . 1 . . . 1 . . 1 1 . . Special Weapon 3 | . . . . . . . . . . . 1 . 1 . . . . . . 1 Impact Weapon 1 | . . . . . . . . . . . . . . . . . 1 . . . Slashing Weapon 7 | . . . . . . . . 1 . . . . . . . 1 1 4 . . Piercing Weapon 1 | . . . . . . . . . . . . . . . . . . 1 . . Special Melee Weapon . | . . . . . . . . . . . . . . . . . . . . . Unidentified Prototypes 38 | . . 1 . . . . . . . . 3 . 4 7 . . 9 11 2 1 Corrupted Parts 1 | . . . . . . . . . . . . . . 1 . . . . . . System Corruption 9 | . . . . . . . . . . . . . . 9 . . . . . . Parts Lost 106 | . 1 1 . . . . 5 23 1 1 . . 2 17 2 6 6 12 . 29 Power 16 | . . . . . . . 2 4 . . . . . 2 . . 2 3 . 3 Propulsion 28 | . . 1 . . . . 2 4 . 1 . . . 3 1 1 1 3 . 11 Utility 35 | . . . . . . . 1 7 1 . . . . 7 . 3 1 6 . 9 Weapon 27 | . 1 . . . . . . 8 . . . . 2 5 1 2 2 . . 6 Highest Loss Streak 23 | . 1 1 . . . . 4 11 1 1 . . 1 11 2 3 2 2 . 23 To Critical Strikes 2 | . . . . . . . . . . . . . . 1 . . . . . 1 Average Backups 12 | . 5 13 12 11 9 11 12 10 11 11 11 11 10 9 2 3 9 17 17 15 Power 1 | . . 1 1 . . 1 . 1 1 1 1 1 1 1 . . . . 1 . Propulsion 2 | . 1 4 4 3 2 2 1 1 1 1 1 1 1 . . . 2 4 3 5 Utility 3 | . 2 4 3 5 3 3 4 3 2 1 1 1 2 3 . . 3 5 4 2 Weapon 4 | . 1 3 3 1 2 4 4 3 7 6 7 7 4 2 2 2 2 5 5 4 Tool/Special . | . . . . . . . . . . . . . . . . . . . . . Unused Backups 45 | . . 4 1 2 . . 1 9 1 1 . . 1 7 . 2 7 3 3 3 Power 4 | . . . 1 1 . . . 2 . . . . . . . . . . . . Propulsion 9 | . . 1 . . . . . 1 . . . . . 1 . 1 3 . 2 . Utility 16 | . . 1 . . . . . 2 1 1 . . 1 3 . . 2 2 1 2 Weapon 12 | . . 2 . 1 . . 1 3 . . . . . 3 . 1 . 1 . . Tool/Special 4 | . . . . . . . . 1 . . . . . . . . 2 . . 1 Average Slot Usage (%) 87 | . 94 99 100 100 87 86 95 79 80 89 100 99 99 89 42 37 81 85 78 68 Engine 4 | . 14 14 14 14 6 6 5 1 . . . . . . . . . . . . Core 2 | . . . . . . . . 3 7 10 11 8 5 4 . 1 4 . . . Reactor 1 | . . . . . . . . . . . . 2 5 5 1 . 1 5 4 4 Leg 7 | . . . . . 4 3 2 12 15 15 23 23 23 21 6 3 . . . 4 Wheel 9 | . 28 28 28 28 19 22 22 5 . . . . . . . . . . . . Hover 3 | . . . . . . . . . . . . . . . . 3 10 19 17 8 Device 9 | . 8 11 . . 5 6 6 7 5 8 11 11 6 10 15 10 13 14 12 8 Storage 6 | . 14 14 14 14 6 6 6 5 5 5 5 5 5 4 . . 4 4 4 3 Processor 5 | . . . . . . . 7 7 4 1 . . . 4 5 5 13 13 16 16 Hackware 7 | . . . . . 11 13 13 11 10 9 5 5 9 9 5 5 7 10 13 11 Protection 8 | . . 2 14 14 13 13 8 5 15 21 23 22 22 12 . . 5 2 . 2 Energy Gun 1 | . 25 1 . . . . . 3 . . 4 5 4 . . 1 2 . . . Energy Cannon 4 | . . 12 9 11 6 6 2 1 5 5 . . . . . . . . . . Ballistic Gun 5 | . . 12 18 16 11 6 9 5 . . . . . 5 2 . 1 . . 3 Ballistic Cannon 3 | . 2 1 . . . . 5 3 10 10 11 11 10 9 5 1 . . . . Slashing Weapon 1 | . . . . . . . . . . . . . . . . 1 2 8 8 5 Peak Build Rating 185 | 6 8 17 20 18 46 43 56 94 98 111 104 106 115 123 110 89 152 166 179 185 Average Rating 83 | 4 7 14 17 17 42 41 51 70 93 102 102 104 111 114 80 59 121 148 164 160 On Entrance 73 | . 6 8 17 18 18 42 40 56 88 94 92 104 106 110 110 71 89 143 151 177 Avg Prop Armor Cover (%) 3 | . . . . . 2 2 2 . . . . . . . . 4 3 . . 3 Naked Turns . | . . . . . . . . . . . . . . . . . . . . . Heaviest Build 117 | 11 29 40 42 40 66 47 55 76 101 117 116 115 115 116 47 33 61 90 79 91 Greatest Support 171 | 26 26 40 40 26 42 58 64 111 98 95 73 73 91 123 122 90 80 80 78 171 Greatest Overweight (x) 3 | . 1 1 1 1 1 1 1 3 1 2 1 1 1 1 . . 1 1 1 1 Average Overweight (x) . | . . . . 1 1 . . . . 1 1 1 1 . . . . . . . Largest Inventory Capacity 20 | 8 15 15 15 15 15 15 15 15 15 15 15 15 15 15 5 10 15 20 20 20 Average Capacity 15 | 7 11 15 15 15 15 15 15 15 15 15 15 15 15 13 5 5 13 19 20 19 Most Carried 20 | . 11 15 15 15 13 15 15 15 15 15 15 15 15 15 5 10 15 20 20 20 Average Carried 14 | . 6 14 14 12 10 14 14 14 14 14 15 15 14 12 4 5 12 19 19 18 Final Capacity 20 | 8 15 15 15 15 15 15 15 15 15 15 15 15 15 5 5 10 15 20 20 5 Final Carried 20 | . 11 15 15 13 13 15 14 15 15 15 15 15 15 5 4 10 15 19 20 4 Class Distribution -------------------- 32% | Scavenger-Tank 31% | Mutant 8% | Hacker-Gladiator 4% | Hacker-Tank 4% | Hacker-Mutant 4% | Scavenger-Scout 3% | Hacker-Scout Dominant Class ---------------- Mutant | -10/Materials Mutant | -10/Subcaves Mutant | -8/Recycling Mutant | -8/Scraptown Hacker-Tank | -6/Factory Hacker-Mutant | -6/Waste Hacker-Tank | -6/Factory Scavenger-Tank | -6/Garrison Scavenger-Tank | -5/Factory Scavenger-Tank | -5/Extension Scavenger-Tank | -5/Cetus Scavenger-Tank | -5/Archives Scavenger-Tank | -5/Hub_04(d) Scavenger-Tank | -4/Factory Mutant | -4/Waste Mutant | -4/Factory Scavenger-Sprinter | -3/Research Hacker-Gladiator | -3/Quarantine Scavenger-Scout | -2/Research Hacker-Gladiator | -1/Access Resources | -11 -10 -10 -8 -8 -6 -6 -6 -6 -5 -5 -5 -5 -5 -4 -4 -4 -3 -3 -2 -1 ----------- Run | Yrd Mat Sub Rec Scr Fac Was Fac Gar Fac Ext Cet Arc Hub Fac Was Fac Res Qua Res Acc Matter Collected 10360 | 178 132 401 111 168 . . 764 1481 365 1255 353 72 449 1462 . 359 1038 952 262 558 Remotely . | . . . . . . . . . . . . . . . . . . . . . Salvage Created 13334 | . 256 250 237 . 50 . 677 1166 615 1796 260 59 516 3270 . 265 870 2413 197 437 Parts 575 | . 16 14 10 . 3 . 30 56 28 60 9 . 12 138 . 14 35 121 15 14 Haulers Intercepted 5 | . . . . . . . . . . . . . 2 1 . . 2 . . . Recyclers Shooed 6 | . 1 . 1 . . . . . . . . . . 4 . . . . . . Parts Field Recycled . | . . . . . . . . . . . . . . . . . . . . . Retrieved Matter . | . . . . . . . . . . . . . . . . . . . . . Parts Self-Destructed 17 | . . 17 . . . . . . . . . . . . . . . . . . Prevented . | . . . . . . . . . . . . . . . . . . . . . Parts Restored . | . . . . . . . . . . . . . . . . . . . . . Kills | -11 -10 -10 -8 -8 -6 -6 -6 -6 -5 -5 -5 -5 -5 -4 -4 -4 -3 -3 -2 -1 ------- Run | Yrd Mat Sub Rec Scr Fac Was Fac Gar Fac Ext Cet Arc Hub Fac Was Fac Res Qua Res Acc Combat Hostiles Destroyed 215 | . 5 3 1 . 1 . 13 29 7 28 4 1 6 50 . 6 16 34 2 9 Melee 36 | . . . . . . . . . . . . . . . . 2 3 26 2 3 Guns 50 | . 4 2 1 . 1 . 9 15 . . . . . 10 . 2 1 . . 5 Cannons 84 | . . 1 . . . . 4 10 7 28 4 1 6 19 . 1 3 . . . AOE 36 | . 1 . . . . . . 4 . . . . . 17 . . 7 7 . . Classes Destroyed 28 | . 3 3 2 . 1 . 4 4 . 2 . . 1 5 . . . 2 . 1 Worker 7 | . 1 . . . . . . . . 1 . . 1 4 . . . . . . Builder 5 | . . . 1 . . . . . . . . . . 2 . . . 1 . 1 Tunneler 1 | . . . . . . . . . . 1 . . . . . . . . . . Hauler 5 | . . . . . . . . . . . . . 2 1 . . 2 . . . Recycler 7 | . . . 2 . . . 1 . 1 . . . . 3 . . . . . . Mechanic 2 | . . . . . . . . . . . . . . 1 . . . 1 . . Operator 5 | . 1 . . . . . . . . . . . . 1 . . . 2 1 . Drone 6 | . . . . . . . . . . . . . . . . . . . . 6 Turret 2 | . . 2 . . . . . . . . . . . . . . . . . . Watcher 15 | . . . . . . . . 1 4 2 1 . . 1 . . 2 3 1 . Swarmer 24 | . . . . . . . 1 1 . . . . . 8 . . 9 5 . . Cutter 5 | . . . . . . . . 5 . . . . . . . . . . . . Saboteur 1 | . . . . . . . . . . . . . . 1 . . . . . . Grunt 61 | . 5 1 . . . . 7 12 5 13 . . . 5 . . 2 11 . . Brawler 5 | . . . . . . . 1 1 . 2 . . . . . . . 1 . . Duelist 6 | . . . . . . . 3 . . . . . . 2 . . 1 . . . Protector 1 | . . . . . . . . . . . . . . 1 . . . . . . Researcher 2 | . . . . . . . . . . . . . . . . . . 2 . . Sentry 29 | . . 1 1 . . . . 2 2 10 . 1 3 4 . . 2 2 . 1 Demolisher 1 | . . . . . . . . . . 1 . . . . . . . . . . Specialist 11 | . . . . . . . . 3 . . . . 1 4 . . . 3 . . Hunter 28 | . . . . . 1 . . 1 . 1 . . 1 15 . 1 2 4 . 2 Programmer 27 | . . . . . . . 1 3 . 1 . . 1 9 . 5 . 5 2 . Q-Series 3 | . . . . . . . . . . . . . . . . . . 3 . . Behemoth 1 | . . . . . . . . 1 . . . . . . . . . . . . Cetus Guard 4 | . . . . . . . . . . . 4 . . . . . . . . . Striker 1 | . . . . . . . . . . . . . . 1 . . . . . . Executioner 1 | . . . . . . . . . . . . . . 1 . . . . . . Subdweller 1 | . . 1 . . . . . . . . . . . . . . . . . . Best Kill Streak 13 | . 4 2 2 . 1 . 5 7 6 8 2 1 3 13 . 2 5 7 1 4 Combat Bots Only 11 | . 3 1 1 . 1 . 4 7 6 7 2 1 3 11 . 2 5 5 1 4 Max Kills in Single Turn 4 | . 2 1 1 . 1 . 2 2 2 3 1 1 1 4 . 1 2 3 1 1 Gunslinging . | . . . . . . . . . . . . . . . . . . . . . Exploded 3 | . 1 . . . . . . 2 . . . . . 3 . . 2 2 . . Melee 2 | . . . . . . . . . . . . . . . . 1 1 2 1 1 Uniques/NPCs Destroyed . | . . . . . . . . . . . . . . . . . . . . . Combat | -11 -10 -10 -8 -8 -6 -6 -6 -6 -5 -5 -5 -5 -5 -4 -4 -4 -3 -3 -2 -1 -------- Run | Yrd Mat Sub Rec Scr Fac Was Fac Gar Fac Ext Cet Arc Hub Fac Was Fac Res Qua Res Acc Hostile Shots Fired 2142 | . 17 72 16 . 6 1 53 292 33 65 11 . 48 648 4 193 62 175 12 434 Missed 697 | . 3 30 1 . 1 1 14 95 15 21 2 . 12 234 1 64 26 60 4 113 Hits 1445 | . 14 42 15 . 5 . 39 197 18 44 9 . 36 414 3 129 36 115 8 321 Melee 21 | . . . . . . . 5 10 . 3 . . . . 3 . . . . . Projectile 1424 | . 14 42 15 . 5 . 34 187 18 41 9 . 36 414 . 129 36 115 8 321 AOE 3 | . . . . . . . . . . . . . . . . 3 . . . . Critical Strikes 61 | . 1 . 1 . . . 5 11 . 2 2 . 4 13 1 9 1 5 1 5 Part Disruptions 3 | . . . . . . . . . . . . . . . . 1 . . . 2 Damage Taken 25876 | . 176 475 251 . 98 . 730 3264 406 692 224 29 947 5302 100 2483 928 2849 140 6782 Core 4106 | . 37 76 53 . 16 . 87 565 20 49 15 . 66 356 . 687 172 290 . 1617 Absorbed by Shields 2748 | . . . . . . . . 125 . 344 95 . 80 2088 8 . . 8 . . Redirected to Shielding 75 | . . . . . . . . . . . . . . . . . 75 . . . Ignored by Resistances 357 | . . . . . . . 66 254 . . . . 37 . . . . . . . Regen/Repaired (Parts) 1127 | . . . . . . . . . . . . . . 185 . . . 264 141 537 Core Remaining (%) 58 | 100 . . . 33 . . . 21 . . . . 85 . . 9 . 64 100 . Volleys Fired 599 | . 19 51 14 . 2 . 41 116 30 55 16 2 24 134 . 27 37 8 . 23 Largest 4 | . 2 2 2 . 3 . 3 3 2 3 3 2 2 3 . 1 2 1 . 4 Hottest 352 | . 80 113 113 . 119 . 98 203 112 217 352 112 112 163 . 85 179 60 . 158 Shots Fired 1108 | . 37 72 26 . 6 . 94 205 50 113 33 4 48 255 2 23 46 8 . 86 Gun 502 | . 37 21 15 . 4 . 63 133 . . 1 . . 94 . 17 32 . . 85 Cannon 565 | . . 48 11 . 2 . 31 62 50 113 32 4 48 149 2 6 7 . . . Launcher 41 | . . 3 . . . . . 10 . . . . . 12 . . 7 8 . 1 Special . | . . . . . . . . . . . . . . . . . . . . . Kinetic 837 | . . 26 15 . 4 . 94 128 40 110 32 4 48 243 2 6 . . . 85 Thermal 197 | . 5 43 11 . 2 . . 66 10 3 1 . . . . 17 39 . . . Explosive 32 | . . 3 . . . . . 8 . . . . . 5 . . 7 8 . 1 Electromagnetic 42 | . 32 . . . . . . 3 . . . . . 7 . . . . . . Robot Hit Streak 16 | . 7 12 15 . 2 . 9 8 5 15 12 11 16 11 . 4 12 12 . 8 Robot Miss Streak 8 | . 2 3 2 . 2 . 7 7 3 5 2 . 3 4 2 2 1 1 . 8 Penetration Max 1 | . . . . . . . . . 1 1 1 . 1 1 . . . . . . Secondary Targets 4 | . . . . . . . . 3 . . . . . . . . . . . 1 Max Gunslinging Chain 1 | . . . . . . . . 1 . . . . . . . . . . . 1 Shots Hit Robots 844 | . 25 31 18 . 5 . 61 117 24 76 25 4 32 158 . 23 50 128 8 59 Core Hits 509 | . 11 14 5 . 3 . 64 72 17 41 6 1 10 132 . 10 34 65 3 21 Critical Kills 82 | . . . . . . . . 3 10 28 5 1 9 23 . . . . . 3 Critical Parts Destroyed 106 | . . 1 . . . . . 2 6 36 10 . 10 35 . . . 2 . 4 Critical Strikes 242 | . . 1 . . . . . 8 18 71 19 4 20 68 . 1 6 15 . 11 Burn 6 | . . . . . . . . . . . . . . . . 1 5 . . . Destroy 209 | . . 1 . . . . . 5 18 71 19 4 20 60 . . . . . 11 Blast 10 | . . . . . . . . 2 . . . . . 8 . . . . . . Smash 2 | . . . . . . . . . . . . . . . . . . 2 . . Sever 13 | . . . . . . . . 1 . . . . . . . . 1 11 . . Impale 2 | . . . . . . . . . . . . . . . . . . 2 . . Melee Attacks 260 | . . . . . . . . 2 . . . . . . . 11 21 191 13 22 Impact 12 | . . . . . . . . . . . . . . . . . . 12 . . Slashing 224 | . . . . . . . . 2 . . . . . . . 11 21 155 13 22 Piercing 24 | . . . . . . . . . . . . . . . . . . 24 . . Sneak Attacks 6 | . . . . . . . . . . . . . . . . . 2 3 1 . Combat Hostiles . | . . . . . . . . . . . . . . . . . . . . . Follow-up Attacks 34 | . . . . . . . . . . . . . . . . . . 31 1 2 Damage Inflicted 33773 | . 462 968 495 . 73 . 1347 3787 592 1856 534 80 574 7845 37 621 2857 8403 733 2509 Guns 6038 | . 343 275 208 . 46 . 876 1748 . . . . . 1059 . 226 543 . . 714 Cannons 8606 | . . 384 287 . 27 . 471 1020 592 1856 534 80 574 2432 37 128 184 . . . Explosions 8765 | . 119 309 . . . . . 988 . . . . . 4354 . . 1193 1528 . 274 Melee 10254 | . . . . . . . . 31 . . . . . . . 263 937 6875 733 1415 Ramming 110 | . . . . . . . . . . . . . . . . 4 . . . 106 Kinetic 11704 | . . 285 208 . 46 . 1347 1887 553 1820 534 80 574 3491 37 128 . . . 714 Thermal 4247 | . 152 374 287 . 27 . . 848 39 36 . . . 1531 . 226 727 . . . Explosive 5673 | . . 309 . . . . . 831 . . . . . 1538 . . 1193 1528 . 274 Electromagnetic 1785 | . 310 . . . . . . 190 . . . . . 1285 . . . . . . Impact 339 | . . . . . . . . . . . . . . . . . . 339 . . Slashing 9164 | . . . . . . . . 31 . . . . . . . 263 937 5785 733 1415 Piercing 751 | . . . . . . . . . . . . . . . . . . 751 . . Highest Corruption 53 | . . . . . . 6 7 9 . 1 1 1 6 23 38 53 3 3 . 3 Average Corruption 8 | . . . . . . 6 6 8 . 1 1 1 2 10 28 45 3 2 . 2 Corruption Purged 10 | . . . . . . . . . . . . . . 10 . . . . . . Corruption Blocked 22 | . . . . . . . . . . . . . . . . . . 10 3 9 Effects 199 | . . . . . . 2 15 59 . 1 5 2 9 24 11 44 6 21 . . Message Errors 39 | . . . . . . 2 3 13 . . 1 . 2 4 3 6 . 5 . . Matter Fused 47 | . . . . . . . 4 17 . 1 3 . 2 5 . 10 1 4 . . Heat Flow Errors 28 | . . . . . . . 4 5 . . 1 . 1 3 . 8 2 4 . . Energy Discharges 22 | . . . . . . . 1 9 . . . . 1 2 . 7 . 2 . . Parts Rejected 1 | . . . . . . . . . . . . . . . . 1 . . . . Parts Fused 4 | . . . . . . . 1 1 . . . 1 1 . . . . . . . Data Loss (minor) 17 | . . . . . . . 1 3 . . . . 2 4 2 2 1 2 . . Data Loss (major) 13 | . . . . . . . . 5 . . . . . 1 . 1 2 4 . . Misfires 5 | . . . . . . . . 2 . . . . . . 2 1 . . . . Alerts 5 | . . . . . . . . 1 . . . 1 . 1 . 2 . . . . Misdirections 6 | . . . . . . . . . . . . . . 1 4 1 . . . . Weapon Failures 12 | . . . . . . . 1 3 . . . . . 3 . 5 . . . . Overload Shots 1 | . . . . . . . . . . . 1 . . . . . . . . . Effects 1 | . . . . . . . . . . . 1 . . . . . . . . . Energy Bleed 1 | . . . . . . . . . . . 1 . . . . . . . . . Overflow Damage 1419 | . . 18 . . . . . 17 . . . . . 208 . . 315 638 222 1 Projectiles 46 | . . 18 . . . . . 1 . . . . . 26 . . 1 . . . Explosions 351 | . . . . . . . . 16 . . . . . 182 . . 153 . . . Melee 1022 | . . . . . . . . . . . . . . . . . 161 638 222 1 Knockbacks 56 | . . . . . . . 12 1 . 14 2 . . 24 . 1 . 2 . . Impact 2 | . . . . . . . . . . . . . . . . . . 2 . . Kinetic 48 | . . . . . . . 12 1 . 11 2 . . 21 . 1 . . . . Secondary 6 | . . . . . . . . . . 3 . . . 3 . . . . . . Self-Inflicted Damage 473 | . . . . . . . . 103 . . . . . 293 . . . . . 77 Shots 19 | . . . . . . . . 6 . . . . . 12 . . . . . 1 Rammed . | . . . . . . . . . . . . . . . . . . . . . Targets Rammed 13 | . . . . . . . . . . . . . . . . 1 . . . 12 Kicked 13 | . . . . . . . . . . . . . . . . 1 . . . 12 Crushed . | . . . . . . . . . . . . . . . . . . . . . Highest Temperature 538 | . 237 126 538 . 84 . 230 205 72 225 210 . 225 383 . 295 360 193 . 226 Average Temperature 101 | . 108 59 196 . 48 . 58 51 34 88 121 . 91 127 . 114 89 95 . 81 Received Heat Transfer 2542 | . 117 225 81 . . . 270 790 81 170 . . 35 410 . 72 120 171 . . Effects 14 | . . . 6 . . . . . . . . . . 7 . . 1 . . . Shutdowns 4 | . . . 1 . . . . . . . . . . 3 . . . . . . Energy Bleed 3 | . . . 1 . . . . . . . . . . 1 . . 1 . . . Interference 4 | . . . 1 . . . . . . . . . . 3 . . . . . . Short Circuit 1 | . . . 1 . . . . . . . . . . . . . . . . . Damage (minor) 1 | . . . 1 . . . . . . . . . . . . . . . . . Damage (core) 1 | . . . 1 . . . . . . . . . . . . . . . . . Siege Activations . | . . . . . . . . . . . . . . . . . . . . . Martial Activations . | . . . . . . . . . . . . . . . . . . . . . Shielding Activations . | . . . . . . . . . . . . . . . . . . . . . Robots Disrupted . | . . . . . . . . . . . . . . . . . . . . . Combat Hostiles . | . . . . . . . . . . . . . . . . . . . . . Robots Corrupted 7 | . . . . . . . . . . . . . . 5 . . . 1 . 1 Combat Hostiles 6 | . . . . . . . . . . . . . . 4 . . . 1 . 1 Parts Fried 18 | . 2 . . . . . . 3 . . . . . 12 . . . 1 . . Impact Corruptions 3 | . . . . . . . . . . . . . . . . . . 2 . 1 Robots Melted 5 | . . . . . . . . . . . . . . . . 1 4 . . . Combat Hostiles 3 | . . . . . . . . . . . . . . . . 1 2 . . . Parts Melted 13 | . . . . . . . . 3 . . . . . . . 1 9 . . . Heat Transferred 6453 | . 175 506 370 . 37 . . 1325 37 37 . . . 1350 . 650 1966 . . . Parts Sabotaged 3 | . . . . . . . . . . 3 . . . . . . . . . . Parts Stolen . | . . . . . . . . . . . . . . . . . . . . . Parts Stripped . | . . . . . . . . . . . . . . . . . . . . . Power Chain Reactions 4 | . 1 . . . . . . . . . . . . 3 . . . . . . Alert | -11 -10 -10 -8 -8 -6 -6 -6 -6 -5 -5 -5 -5 -5 -4 -4 -4 -3 -3 -2 -1 ------- Run | Yrd Mat Sub Rec Scr Fac Was Fac Gar Fac Ext Cet Arc Hub Fac Was Fac Res Qua Res Acc Maximum Alert Level 4 | . . . . . . . 1 4 2 4 3 2 2 4 2 1 1 2 1 . Low Security (%) 38 | 100 100 . 100 . 100 100 95 3 . 62 . . 6 31 . 21 63 2 66 100 Level 1 17 | . . . . . . . 4 2 2 25 . 18 3 15 . 78 36 33 33 . Level 2 30 | . . . . . . . . 43 97 2 . 81 90 34 100 . . 64 . . Level 3 10 | . . . . . . . . 41 . 5 100 . . 7 . . . . . . Level 4 2 | . . . . . . . . 8 . 4 . . . 11 . . . . . . Level 5 . | . . . . . . . . . . . . . . . . . . . . . High Security . | . . . . . . . . . . . . . . . . . . . . . Max Security . | . . . . . . . . . . . . . . . . . . . . . Peak Influence 1594 | . 140 . 50 . 45 12 211 1218 646 1391 907 473 598 1594 557 335 387 663 370 146 Initial 775 | . . . 31 . . 12 . 136 639 109 775 329 133 235 557 335 90 191 370 108 Average 371 | . 84 . 12 . 1 2 51 724 527 236 834 423 511 512 513 235 171 459 205 36 Influence Increases 11375 | . 223 268 217 . 45 . 375 1352 245 2189 375 194 914 2189 2 200 685 1214 176 512 Destroy 0b10 Robot/C 5160 | . 100 160 20 . 20 . 260 580 140 900 160 80 340 1000 . 120 320 720 40 200 Destroy 0b10 Robot/NC 245 | . 10 . 15 . . . 5 5 25 20 10 . 15 70 . . 20 35 10 5 Destroy Leader 826 | . 30 10 . . 10 . 40 30 38 94 . . 104 224 . 30 68 106 12 30 Allied During Kill 1565 | . . 8 . . . . . . . 894 170 80 387 16 . . . . . 10 Trap Triggered on 0b10 30 | . . . . . . . . 30 . . . . . . . . . . . . Successful Hack 376 | . 18 . 30 . . . 4 35 19 67 . . 20 12 . 16 36 38 60 21 Select Force Hacks 150 | . . . 150 . . . . . . . . . . . . . . . . . Disable Machine 585 | . 15 . . . 15 . 15 75 . 15 15 30 30 240 . . 60 75 . . Anti-Garrison Action 300 | . . . . . . . . 300 . . . . . . . . . . . . Destroy Structure 893 | . 5 . 2 . . . 6 147 8 34 20 4 18 282 2 4 106 180 9 66 Partial Spotted 105 | . . . . . . . . . . . . . . 30 . . 45 15 15 . Lose Combat Pursuer 1140 | . 45 90 . . . . 45 150 15 165 . . . 315 . 30 30 45 30 180 Influence Decreases 11288 | . 130 295 283 . 10 35 180 329 1239 1028 936 635 816 1076 1117 506 517 896 653 607 Entered New Map 4234 | . . 45 35 . . 23 . 59 579 115 610 495 250 246 1037 144 83 150 289 74 Time Decay 4620 | . 120 197 248 . 10 12 130 . 350 541 286 100 286 510 60 302 374 626 214 254 Lost Part 1009 | . 10 10 . . . . 50 230 10 10 . . 20 170 20 60 60 120 . 239 Lost Ally 603 | . . 43 . . . . . 40 . 140 40 40 260 . . . . . . 40 Purge Threat 822 | . . . . . . . . . 300 222 . . . 150 . . . . 150 . Squads Dispatched 56 | . 2 . . . 1 . 5 . 4 4 . . 6 12 . 2 4 11 1 4 Investigation 9 | . 1 . . . 1 . . . 2 1 . . 1 1 . . . 2 . . Extermination 15 | . . . . . . . 1 . 1 . . . 1 2 . 2 . 5 1 2 Reinforcement 21 | . 1 . . . . . 1 . 1 1 . . 3 4 . . 4 4 . 2 Assault 4 | . . . . . . . . . . 2 . . . 2 . . . . . . Garrison 7 | . . . . . . . 3 . . . . . 1 3 . . . . . . Intercept . | . . . . . . . . . . . . . . . . . . . . . Searches Triggered . | . . . . . . . . . . . . . . . . . . . . . Construction Impeded 2 | . . . . . . . . . . 1 . . . 1 . . . . . . Haulers Reinforced 3 | . . . . . . . . . . . . . . . . . 2 1 . . Active Scanning Responses . | . . . . . . . . . . . . . . . . . . . . . Cargo Convoy Interrupts 1 | . . . . . . . . . . . . . . 1 . . . . . . Stealth | -11 -10 -10 -8 -8 -6 -6 -6 -6 -5 -5 -5 -5 -5 -4 -4 -4 -3 -3 -2 -1 --------- Run | Yrd Mat Sub Rec Scr Fac Was Fac Gar Fac Ext Cet Arc Hub Fac Was Fac Res Qua Res Acc Distress Signals 19 | . . . . . . . . . . 2 2 . 1 4 . 2 5 3 . . Communications Jammed . | . . . . . . . . . . . . . . . . . . . . . Distress Signals . | . . . . . . . . . . . . . . . . . . . . . Times Spotted 401 | . 9 13 1 . 1 5 22 43 13 62 10 3 23 69 6 18 26 48 5 24 Peak Tracking Total 17 | . 3 2 1 . 2 5 4 13 6 17 5 2 6 13 6 6 5 5 4 15 Tactical Retreats 34 | . 1 2 . . . . 2 4 1 5 . . . 8 . 2 1 3 1 4 Traps | -11 -10 -10 -8 -8 -6 -6 -6 -6 -5 -5 -5 -5 -5 -4 -4 -4 -3 -3 -2 -1 ------- Run | Yrd Mat Sub Rec Scr Fac Was Fac Gar Fac Ext Cet Arc Hub Fac Was Fac Res Qua Res Acc Traps Triggered 24 | . . 2 . . 1 . 1 7 1 2 . . . 2 . 1 1 4 . 2 Indirectly . | . . . . . . . . . . . . . . . . . . . . . Trap Hack Attempts . | . . . . . . . . . . . . . . . . . . . . . Triggered . | . . . . . . . . . . . . . . . . . . . . . Disarmed 1 | . . . . . . . . . . 1 . . . . . . . . . . Reprogrammed 6 | . . . . . . . . . . 6 . . . . . . . . . . Reused 3 | . . . . . . . . 3 . . . . . . . . . . . . Traps Extracted . | . . . . . . . . . . . . . . . . . . . . . Installed 6 | . . 2 . . . . . 4 . . . . . . . . . . . . Triggered 3 | . . . . . . . . 3 . . . . . . . . . . . . Most Traps Carried 3 | . . 1 . . . . . 3 . . . . . . . . . . . . Machines | -11 -10 -10 -8 -8 -6 -6 -6 -6 -5 -5 -5 -5 -5 -4 -4 -4 -3 -3 -2 -1 ---------- Run | Yrd Mat Sub Rec Scr Fac Was Fac Gar Fac Ext Cet Arc Hub Fac Was Fac Res Qua Res Acc Machines Disabled 45 | . 1 2 . . 1 . 1 8 . 2 1 2 2 16 . . 4 5 . . Max in Single Turn 6 | . 1 1 . . 1 . 1 1 . 1 1 . 1 6 . . 2 1 . . Garrison Access 7 | . . . . . . . . . 1 . . . 1 . . . 2 1 1 1 Garrison Relay 3 | . . . . . . . . 3 . . . . . . . . . . . . Network Hub 1 | . . . . . . . . . . . . . 1 . . . . . . . Machines Repaired . | . . . . . . . . . . . . . . . . . . . . . Machines Dismantled 2 | . . . . . . . . . . . 1 . 1 . . . . . . . Machines Sabotaged . | . . . . . . . . . . . . . . . . . . . . . Overloaded Fab Kills . | . . . . . . . . . . . . . . . . . . . . . Hacking | -11 -10 -10 -8 -8 -6 -6 -6 -6 -5 -5 -5 -5 -5 -4 -4 -4 -3 -3 -2 -1 --------- Run | Yrd Mat Sub Rec Scr Fac Was Fac Gar Fac Ext Cet Arc Hub Fac Was Fac Res Qua Res Acc Machines Accessed 104 | . 4 2 11 1 3 . 6 3 8 16 1 1 3 9 . 3 9 15 7 2 Terminals 59 | . 3 . 6 . . . . 3 4 16 1 . 2 1 . 1 6 12 4 . Fabricators 6 | . . . . . . . 1 . . . . . . 3 . . 2 . . . Repair Stations 6 | . . . . . 1 . 1 . 1 . . . . 1 . . . 1 . 1 Recycling Units 13 | . 1 . 5 . . . 1 . 1 . . . . 1 . 2 . . 2 . Scanalyzers 7 | . . . . . 1 . 2 . 1 . . . . 2 . . . 1 . . Garrison Access 9 | . . . . . 1 . 1 . 1 . . . 1 1 . . 1 1 1 1 Total Hacks 344 | . 8 5 31 9 9 . 12 9 25 50 1 2 14 31 . 9 40 47 35 7 Successful 147 | . 4 5 20 9 3 . 7 3 9 25 . 2 6 13 . 2 12 12 13 2 Failed 194 | . 4 . 11 . 5 . 4 6 16 25 1 . 8 18 . 7 28 34 22 5 Catastrophic 57 | . 1 . 3 . 2 . 1 4 3 4 1 . 2 3 . 1 10 15 6 1 Database Lockouts 3 | . . . . . 1 . 1 . . . . . . . . . . 1 . . Manual 117 | . . . 26 . . . 1 2 11 13 1 . 6 9 . . 30 5 13 . Terminals 230 | . 7 . 21 . . . . 9 20 50 1 . 10 6 . 5 37 35 29 . Fabricators 16 | . . . . . . . 2 . . . . . . 12 . . 2 . . . Repair Stations 14 | . . . . . 2 . 1 . 1 . . . . 2 . . . 3 . 5 Recycling Units 25 | . 1 . 10 . . . 2 . 1 . . . . 2 . 4 . . 5 . Scanalyzers 24 | . . . . . 3 . 6 . 2 . . . . 5 . . . 8 . . Garrison Access 19 | . . . . . 4 . 1 . 1 . . . 4 4 . . 1 1 1 2 Terminal Hacks 75 | . 3 5 6 9 . . . 3 3 19 . 2 3 2 . 1 7 5 7 . Record 18 | . . 4 . 9 . . . . . . . 2 . . . . . 3 . . Part Schematic 1 | . . . 1 . . . . . . . . . . . . . . . . . Robot Schematic 1 | . . . 1 . . . . . . . . . . . . . . . . . Robot Analysis 6 | . . . 4 . . . . . . 2 . . . . . . . . . . Open Door 11 | . . . . . . . . 1 . 9 . . . . . . . 1 . . Open DSF 1 | . . . . . . . . . . . . . . . . . 1 . . . Branch Access Points 3 | . . . . . . . . . 1 . . . . . . . 2 . . . Emergency Access Points 1 | . . . . . . . . 1 . . . . . . . . . . . . Machine Index 1 | . . . . . . . . . . . . . . . . . . . 1 . Alert Level 3 | . . . . . . . . . . . . . 1 1 . . . . 1 . Unreport Threat 7 | . . . . . . . . . 2 3 . . . 1 . . . . 1 . Locate Traps 12 | . 3 . . . . . . . . 2 . . 1 . . 1 3 1 1 . Disarm Traps 1 | . . . . . . . . . . 1 . . . . . . . . . . Reprogram Traps 1 | . . . . . . . . . . 1 . . . . . . . . . . Registered Components 1 | . . . . . . . . . . . . . . . . . . . 1 . Zone Layout 5 | . . . . . . . . . . 1 . . 1 . . . 1 . 2 . Patrol Navigation 1 | . . . . . . . . 1 . . . . . . . . . . . . Proto ID Catalog 1 | . . 1 . . . . . . . . . . . . . . . . . . Fabricator Hacks 3 | . . . . . . . . . . . . . . 3 . . . . . . Network Status 1 | . . . . . . . . . . . . . . 1 . . . . . . Build 2 | . . . . . . . . . . . . . . 2 . . . . . . Repair Station Hacks 5 | . . . . . 1 . . . . . . . . 2 . . . 1 . 1 Scan Component 2 | . . . . . . . . . . . . . . 1 . . . . . 1 Repair 1 | . . . . . . . . . . . . . . 1 . . . . . . Refit 2 | . . . . . 1 . . . . . . . . . . . . 1 . . Recycling Unit Hacks 10 | . 1 . 3 . . . 1 . 1 . . . . 1 . 1 . . 2 . Retrieve Components 10 | . 1 . 3 . . . 1 . 1 . . . . 1 . 1 . . 2 . Scanalyzer 13 | . . . . . 2 . 5 . 1 . . . . 2 . . . 3 . . Insert Component 3 | . . . . . 1 . 2 . . . . . . . . . . . . . Analyze 2 | . . . . . . . 2 . . . . . . . . . . . . . Retrieve Study 8 | . . . . . 1 . 1 . 1 . . . . 2 . . . 3 . . Garrison Access Hacks 7 | . . . . . . . 1 . 1 . . . 1 . . . 1 1 1 1 Unlock Access 1 | . . . . . . . 1 . . . . . . . . . . . . . Seal Access 6 | . . . . . . . . . 1 . . . 1 . . . 1 1 1 1 Unauthorized Hacks 34 | . . . 11 . . . . . 3 6 . . 2 3 . . 4 2 3 . Terminals 26 | . . . 6 . . . . . 3 6 . . 2 1 . . 4 1 3 . Botnet 20 | . . . 4 . . . . . 3 5 . . 2 1 . . 2 1 2 . Detonate 1 | . . . 1 . . . . . . . . . . . . . . . . . Disrupt 1 | . . . 1 . . . . . . . . . . . . . . . . . Operators 4 | . . . . . . . . . . 1 . . . . . . 2 . 1 . Fabricators 1 | . . . . . . . . . . . . . . 1 . . . . . . Fabnet 1 | . . . . . . . . . . . . . . 1 . . . . . . Repair Stations . | . . . . . . . . . . . . . . . . . . . . . Recycling Units 6 | . . . 5 . . . . . . . . . . 1 . . . . . . Recyclers 1 | . . . . . . . . . . . . . . 1 . . . . . . Tunnel 5 | . . . 5 . . . . . . . . . . . . . . . . . Scanalyzers 1 | . . . . . . . . . . . . . . . . . . 1 . . Researchers 1 | . . . . . . . . . . . . . . . . . . 1 . . Garrison Access . | . . . . . . . . . . . . . . . . . . . . . Data Cores Recovered 2 | . . . . . . . . . . . . . . . . . . 1 1 . Used 2 | . . . . . . . . . . . . . . . . . . 1 1 . Hacking Detections 66 | . 3 . 8 . 2 . 3 3 7 8 1 . 2 6 . 2 7 9 4 1 Full Trace Events 12 | . 2 . 3 . 1 . . 1 1 1 . . 1 1 . . . 1 . . Feedback Events . | . . . . . . . . . . . . . . . . . . . . . Feedback Blocked . | . . . . . . . . . . . . . . . . . . . . . Robot Schematics Acquired 2 | . . . 1 . . . . . . . . . . . . . . 1 . . Robots Built 3 | . . . . . . . . . . . . . . 3 . . . . . . Authchips . | . . . . . . . . . . . . . . . . . . . . . Time 93 | . . . . . . . . . . . . . . 93 . . . . . . Total Robot Build Rating 21 | . . . . . . . . . . . . . . 21 . . . . . . Part Schematics Acquired 7 | . . . 1 . . . 2 . . . . . . . . . . 4 . . Parts Built . | . . . . . . . . . . . . . . . . . . . . . Authchips . | . . . . . . . . . . . . . . . . . . . . . Time 139 | . . . . . . . . . . . . . . 139 . . . . . . Total Part Build Rating . | . . . . . . . . . . . . . . . . . . . . . Part Studies Acquired 7 | . . . . . 1 . 1 . 1 . . . . 1 . . . 3 . . Parts Repaired 1 | . . . . . . . . . . . . . . 1 . . . . . . Time 31 | . . . . . . . . . . . . . . 31 . . . . . . Parts Recycled . | . . . . . . . . . . . . . . . . . . . . . Recycled Matter . | . . . . . . . . . . . . . . . . . . . . . Retrieved Matter . | . . . . . . . . . . . . . . . . . . . . . Retrieved Components 21 | . 1 . 12 . . . 1 . . . . . . 2 . . . . 5 . Parts Scanalyzed 2 | . . . . . . . 2 . . . . . . . . . . . . . Part Schematics Acquired 2 | . . . . . . . 2 . . . . . . . . . . . . . Parts Damaged . | . . . . . . . . . . . . . . . . . . . . . Bothacking | -11 -10 -10 -8 -8 -6 -6 -6 -6 -5 -5 -5 -5 -5 -4 -4 -4 -3 -3 -2 -1 ------------ Run | Yrd Mat Sub Rec Scr Fac Was Fac Gar Fac Ext Cet Arc Hub Fac Was Fac Res Qua Res Acc Used RIF Installer . | . . . . . . . . . . . . . . . . . . . . . Robots Hacked . | . . . . . . . . . . . . . . . . . . . . . Non-combat . | . . . . . . . . . . . . . . . . . . . . . Combat . | . . . . . . . . . . . . . . . . . . . . . Robot Hacks Applied . | . . . . . . . . . . . . . . . . . . . . . Relay Couplers Released 18 | . . . . . . . . 15 . . . . . 3 . . . . . . Machine Destruction 11 | . . . . . . . . 11 . . . . . . . . . . . . Programmers 7 | . . . . . . . . 4 . . . . . 3 . . . . . . Fabnet Peak Effective % . | . . . . . . . . . . . . . . . . . . . . . Robots Rewired 10 | . . . . . . . . 2 . 8 . . . . . . . . . . Allies Hacked 2 | . . . . . . . . . . . . . 1 1 . . . . . . Hacks Repelled 1 | . . . . . . . . . . 1 . . . . . . . . . . Allies | -11 -10 -10 -8 -8 -6 -6 -6 -6 -5 -5 -5 -5 -5 -4 -4 -4 -3 -3 -2 -1 -------- Run | Yrd Mat Sub Rec Scr Fac Was Fac Gar Fac Ext Cet Arc Hub Fac Was Fac Res Qua Res Acc Total Allies 42 | . . 3 . . . . . 2 . 21 5 . . 3 . . . . . 8 Largest Group 21 | . . 3 . . . . . 2 . 21 17 16 13 3 . . . . . 7 Highest-Rated Group 920 | . . 57 . . . . . 75 . 736 920 900 622 144 . . . . . 102 Highest-Rated Ally 159 | . . 19 . . . . . 46 . 159 159 143 96 48 . . . . . 15 Initial Warlord ECA Mod 6 | . . . . . . . . . 6 6 6 6 6 5 5 5 4 4 3 2 Total Orders . | . . . . . . . . . . . . . . . . . . . . . Ally Attacks 334 | . . 16 . . . . . 1 . 140 51 35 70 1 . . . . . 20 Total Damage 8564 | . . 239 . . . . . 40 . 3406 1230 995 2209 70 . . . . . 375 Kills 43 | . . 4 . . . . . . . 18 5 3 11 1 . . . . . 1 Allies Corrupted 2 | . . . . . . . . . . . . . 2 . . . . . . . Allies Melted . | . . . . . . . . . . . . . . . . . . . . . Intel | -11 -10 -10 -8 -8 -6 -6 -6 -6 -5 -5 -5 -5 -5 -4 -4 -4 -3 -3 -2 -1 ------- Run | Yrd Mat Sub Rec Scr Fac Was Fac Gar Fac Ext Cet Arc Hub Fac Was Fac Res Qua Res Acc Active Infowar (turns) 9138 | . . 2277 . . 178 92 570 1727 649 482 . . . . . . 14 1932 443 774 Optics 4938 | . . . . . . . 224 1727 649 482 . . . . . . . 648 434 774 Sensors 4827 | . . 2277 . . . . . . . . . . . . . . . 1932 418 200 IFF 618 | . . . . . 178 92 346 . . . . . . . . . . 2 . . Cloaking 1 | . . . . . . . . . . . . . . . . . . . 1 . Jamming 13 | . . . . . . . . . . . . . . . . . 13 . . . ECM 1 | . . . . . . . . . . . . . . . . . 1 . . . Robot Analysis Total 6 | . . . 4 . . . . . . 2 . . . . . . . . . . Derelict Logs Recovered 5 | . . 2 . 3 . . . . . . . . . . . . . . . . Drone Launches . | . . . . . . . . . . . . . . . . . . . . . Drone Recoveries . | . . . . . . . . . . . . . . . . . . . . . Exploration | -11 -10 -10 -8 -8 -6 -6 -6 -6 -5 -5 -5 -5 -5 -4 -4 -4 -3 -3 -2 -1 ------------- Run | Yrd Mat Sub Rec Scr Fac Was Fac Gar Fac Ext Cet Arc Hub Fac Was Fac Res Qua Res Acc Turns Passed 17684 | 37 318 2822 865 687 202 92 570 1727 786 1688 620 212 637 1397 134 660 870 2143 443 774 Spaces Moved 13841 | 34 239 2432 678 648 176 93 438 1004 537 701 210 91 269 698 96 577 1484 2242 472 722 Core 149 | 2 . . . . . . . . . . . . . . . 103 . . . 44 Treads . | . . . . . . . . . . . . . . . . . . . . . Legs 3606 | . . . . . . . . 726 537 701 210 91 269 698 96 232 . . . 46 Wheels 5014 | 32 239 2432 678 648 176 93 438 278 . . . . . . . . . . . . Hover 4364 | . . . . . . . . . . . . . . . . 242 776 2242 472 632 Flight 708 | . . . . . . . . . . . . . . . . . 708 . . . Fastest Speed 25 | 50 90 105 105 105 101 87 83 90 120 185 185 185 185 120 130 50 25 44 44 40 Average Speed 94 | 85 97 106 113 105 101 95 94 115 127 194 185 185 185 122 137 87 39 50 48 56 Slowest Speed 260 | 90 105 110 120 105 108 101 101 135 193 260 185 185 185 190 140 140 110 110 105 210 Overloaded Moves . | . . . . . . . . . . . . . . . . . . . . . Propulsion Burnouts . | . . . . . . . . . . . . . . . . . . . . . Robots Hopped . | . . . . . . . . . . . . . . . . . . . . . Potential Cave-ins . | . . . . . . . . . . . . . . . . . . . . . Cave-ins Triggered 1 | . . . . . . . . . . . . . . 1 . . . . . . Exploration Rate (%) 47 | 4 36 96 99 57 6 74 8 64 11 85 78 83 19 23 90 19 34 99 12 7 Regions Visited 20 Branch Regions 8 Pre-discovered Areas 6 | . . . 5 1 . . . . . . . . . . . . . . . . Known Exits Taken 6 | . . 1 . . . . 1 . 1 . . . . . . . 1 1 1 . Unknown Exits Taken 9 | 1 1 . 1 1 . . . . . 1 1 1 1 . . 1 . . . . Scrap Searched 8 | . . 5 . 3 . . . . . . . . . . . . . . . . Spaces Dug 37 | . . . 1 . . . 4 . 8 . . . . . . . 1 19 3 1 Terrain Destroyed 485 | . 5 17 2 . . . 4 40 9 3 1 1 . 192 1 2 58 114 3 33 Melee 24 | . . . . . . . . . . . . . . . . . 1 19 3 1 Projectile 68 | . . 5 2 . . . 4 9 9 3 1 1 . 30 1 2 . . . 1 AOE 389 | . 5 12 . . . . . 31 . . . . . 162 . . 57 95 . 27 Terrain Rammed . | . . . . . . . . . . . . . . . . . . . . . Walls Destroyed . | . . . . . . . . . . . . . . . . . . . . . Machines Disabled . | . . . . . . . . . . . . . . . . . . . . . Actions | -11 -10 -10 -8 -8 -6 -6 -6 -6 -5 -5 -5 -5 -5 -4 -4 -4 -3 -3 -2 -1 --------- Run | Yrd Mat Sub Rec Scr Fac Was Fac Gar Fac Ext Cet Arc Hub Fac Was Fac Res Qua Res Acc Total 17247 | 39 285 2577 749 656 195 95 521 1381 588 917 401 131 357 1004 98 681 1715 3158 679 1020 Wait 1553 | . 9 30 37 . 3 . 18 94 12 50 156 31 19 84 1 31 53 593 132 200 Move 13824 | 33 238 2431 677 647 176 92 438 1003 536 700 209 90 268 698 95 576 1483 2241 471 722 Hop . | . . . . . . . . . . . . . . . . . . . . . Pick Up 139 | . 11 15 4 3 3 2 6 25 2 4 . . 5 11 . 6 15 19 4 4 Fast Attach 280 | 6 3 3 2 1 3 . 7 27 4 21 5 4 10 30 . 21 46 53 27 7 Attach 73 | . 1 3 . . 5 . 4 9 1 2 . . 2 9 1 1 4 12 . 19 Detach 35 | . 1 . 2 . 2 . . 2 . . . . 3 5 . 2 5 10 1 2 Swap 75 | . 1 23 5 . . 1 3 15 . . 2 . 5 6 . . 4 8 2 . Drop 291 | . 2 18 8 5 1 . 4 28 3 19 5 4 15 27 . 5 47 58 31 11 Fire 599 | . 19 51 14 . 2 . 41 116 30 55 16 2 24 134 . 27 37 8 . 23 Melee 208 | . . . . . . . . 2 . . . . . . . 11 21 143 11 20 Ram 1 | . . . . . . . . . . . . . . . 1 . . . . . Kick 13 | . . . . . . . . . . . . . . . . 1 . . . 12 Crush . | . . . . . . . . . . . . . . . . . . . . . Escape Stasis 44 | . . . . . . . . 21 . 10 . . . . . . . 13 . . Rewire 92 | . . 1 . . . . . 35 . 56 . . . . . . . . . . Trap 6 | . . 2 . . . . . 4 . . . . . . . . . . . . Miscellaneous 14 | . . . . . . . . . . . 8 . 6 . . . . . . . Route ------- -11/Scrapyard -10/Materials (discovered 3 exits: [*Mat] / [*Min] / *Sub) -10/Subcaves (discovered 4 exits: *Mat x2 / *Rec / *Scr) -8/Recycling (discovered 2 exits: *Fac / *Scr) -8/Scraptown -6/Factory -6/Waste -6/Factory -6/Garrison (discovered 2 exits: *Fac x2) -5/Factory (discovered 4 exits: Upp x2 / *Ext x2) -5/Extension (discovered 2 exits: *Fac / *Cet) -5/Cetus (discovered 2 exits: *Fac / *Arc) -5/Archives (discovered 3 exits: *Fac / *Hub x2) -5/Hub_04(d) (discovered 3 exits: *Fac x3) -4/Factory -4/Waste -4/Factory -3/Research (discovered 4 exits: *Res x2 / *Qua x2) -3/Quarantine -2/Research -1/Access History --------- Turn | Location | Event 11 | -11/Scrapyard | Discovered new exit (range 15) 38 | -11/Scrapyard | Entered Materials 38 | -10/Materials | Discovered new exit (range 7) 279 | -10/Materials | Discovered new exit (range 3) 316 | -10/Materials | Build established: Mutant 351 | -10/Materials | Discovered new exit (range 5) 356 | -10/Materials | Entered Subcaves 357 | -10/Subcaves | Approached by a straggling Scientist 369 | -10/Subcaves | Shifting Twisted Machinery released Flamer 370 | -10/Subcaves | Shifting Twisted Machinery released Sub. Laser 650 | -10/Subcaves | Visited Clippyterm 653 | -10/Subcaves | Identified exit to Recycling 653 | -10/Subcaves | Identified exit to Materials 653 | -10/Subcaves | Learned Factory garrison access intel 692 | -10/Subcaves | Learned 2 Materials zone layouts 704 | -10/Subcaves | Visited 4L-MR0's lab 715 | -10/Subcaves | Found Cargo Legs 763 | -10/Subcaves | Ambushed by Subdwellers from Twisted Machinery 986 | -10/Subcaves | Shifting Twisted Machinery released Sub. Laser 991 | -10/Subcaves | Shifting Twisted Machinery released Hvy. Battle Rifle 992 | -10/Subcaves | Shifting Twisted Machinery released Sub. Machine Gun 1035 | -10/Subcaves | Learned Materials garrison access intel 1390 | -10/Subcaves | A swath of the cavern ceiling suddenly collapsed 1460 | -10/Subcaves | Disturbed a concealed Subdweller 1527 | -10/Subcaves | Visited triangular shrine 1534 | -10/Subcaves | Found Prototype Device 1535 | -10/Subcaves | Identified V3-11A's Pendant 1540 | -10/Subcaves | Befriended Subdweller 1883 | -10/Subcaves | Ambushed by Subdwellers from Twisted Machinery 1887 | -10/Subcaves | Befriended Subdweller 1887 | -10/Subcaves | Befriended Subdweller 1997 | -10/Subcaves | Lost 3 allies 2010 | -10/Subcaves | Shifting Twisted Machinery released Sub. Monowheel 3178 | -10/Subcaves | Entered Recycling 3345 | -8/Recycling | Discovered new exit (range 12) 3738 | -8/Recycling | Core integrity fell below 50% 4016 | -8/Recycling | Scanned before Scraplab entrance 4032 | -8/Recycling | Entered Scraplab 4041 | -8/Recycling | Discovered new exit (range 3) 4043 | -8/Recycling | Entered Scraptown 4120 | -8/Scraptown | Delivered V3-11A's Pendant to T0-NE2 in exchange for information 4252 | -8/Scraptown | Discovered new exit (range 11) 4292 | -8/Scraptown | Scanned Subdweller tech in exchange for log data 4294 | -8/Scraptown | Learned location of 1 exit from Factory 4296 | -8/Scraptown | Learned location of 1 exit from Research 4329 | -8/Scraptown | Visited Cyclists 4361 | -8/Scraptown | Visited IN-MT5's Study 4392 | -8/Scraptown | Visited Awakened 4444 | -8/Scraptown | Visited Symbiants 4466 | -8/Scraptown | Visited Fellowship of the Rings 4675 | -8/Scraptown | Visited SPCMW 4693 | -8/Scraptown | Visited Assassins FH 4730 | -8/Scraptown | Entered Factory 4730 | -6/Factory | Evolved 8 slots: Propulsion x2, Utility x5, Weapon x1 4731 | -6/Factory | Identified exit to Factory 4732 | -6/Factory | Loaded intel: 4 garrison access locations 4751 | -6/Factory | Central database locked down 4932 | -6/Factory | Sucked down chute 4932 | -6/Factory | Entered Waste 4943 | -6/Waste | Spotted C-40 Crusher 4947 | -6/Waste | EMP discharged 4954 | -6/Waste | Spotted C-40 Crusher 4956 | -6/Waste | Spotted C-40 Crusher 4961 | -6/Waste | Spotted C-40 Crusher 4963 | -6/Waste | Spotted C-40 Crusher 4984 | -6/Waste | Spotted C-40 Crusher 5011 | -6/Waste | Discovered new exit (range 14) 5019 | -6/Waste | Found Broken Fusion Bomb Launcher 5024 | -6/Waste | Entered Factory 5102 | -6/Factory | Central database locked down 5394 | -6/Factory | Garrison activated, responded to threat 5424 | -6/Factory | Lost 4 parts (1p2n1u) 5594 | -6/Factory | Identified exit to Garrison 5594 | -6/Factory | Entered Garrison 5721 | -6/Garrison | Destroyed 7 combat bots 5731 | -6/Garrison | Lost 4 parts (1p1n1u1w) 5805 | -6/Garrison | Garrison Relay disabled 5806 | -6/Garrison | Triggered checkpoint 5957 | -6/Garrison | Triggered checkpoint 5983 | -6/Garrison | Spotted B-75 Beast 6044 | -6/Garrison | Attached Cargo Legs, gained temporary slots: Utility x2 6066 | -6/Garrison | Core integrity fell below 50% 6072 | -6/Garrison | Destroyed B-75 Beast 6096 | -6/Garrison | Lost 11 parts (1p3n3u4w) 6226 | -6/Garrison | Triggered checkpoint 6289 | -6/Garrison | Lost 4 parts (2p2w) 6389 | -6/Garrison | Garrison Relay disabled 6516 | -6/Garrison | Found Gamma Bomb Array 6591 | -6/Garrison | Discovered exit to Factory (range 21) 6883 | -6/Garrison | Discovered exit to Factory (range 11) 7136 | -6/Garrison | Triggered checkpoint 7147 | -6/Garrison | Build established: Scavenger-Tank 7272 | -6/Garrison | Garrison Relay disabled 7321 | -6/Garrison | Entered Factory 7321 | -5/Factory | Evolved 2 slots: Power x1, Utility x1 7579 | -5/Factory | Identified exit to Upper Caves 7579 | -5/Factory | Identified exit to Extension 8107 | -5/Factory | Entered Extension 8339 | -5/Extension | Rescued a captive Derelict 8340 | -5/Extension | Rescued a captive Derelict 8541 | -5/Extension | Rescued A7 8544 | -5/Extension | Rescued a captive Derelict 8591 | -5/Extension | Rescued a captive Derelict 8593 | -5/Extension | Rescued a captive Derelict 9000 | -5/Extension | Spotted B-75 Beast 9015 | -5/Extension | Allies destroyed B-75 Beast 9034 | -5/Extension | Spotted B-75 Beast 9050 | -5/Extension | Allies destroyed B-75 Beast 9121 | -5/Extension | Rescued a captive Derelict 9122 | -5/Extension | Rescued a captive Derelict 9245 | -5/Extension | Rescued a captive Derelict 9424 | -5/Extension | Rescued a captive Derelict 9425 | -5/Extension | Rescued a captive Derelict 9467 | -5/Extension | Rescued a captive Derelict 9488 | -5/Extension | Rescued a captive Derelict 9489 | -5/Extension | Rescued a captive Derelict 9590 | -5/Extension | Disrupted transfer network 9607 | -5/Extension | First assault squad dispatched 9622 | -5/Extension | Destroyed 7 combat bots 9686 | -5/Extension | Discovered new exit (range 10) 9688 | -5/Extension | Discovered new exit (range 6) 9694 | -5/Extension | Lost 4 allies 9760 | -5/Extension | Lost 4 allies 9795 | -5/Extension | Entered Cetus 9795 | -5/Cetus | Accompanied by 13 allies (A7) 9800 | -5/Cetus | Acquired a Cetus Manufacturing Module code from A7 9819 | -5/Cetus | Spotted Cetus Guard 9819 | -5/Cetus | Spotted Cetus Guard 9821 | -5/Cetus | Spotted Cetus Guard 9823 | -5/Cetus | Spotted Cetus Guard 9824 | -5/Cetus | Destroyed Cetus Guard 9834 | -5/Cetus | Allies destroyed Cetus Guard 9836 | -5/Cetus | Allies destroyed Cetus Guard 9837 | -5/Cetus | Destroyed Cetus Guard 9928 | -5/Cetus | Started Cetus Manufacturing Module 9953 | -5/Cetus | Manufactured an Enhanced Grunt 9978 | -5/Cetus | Manufactured an Enhanced Grunt 10003 | -5/Cetus | Manufactured an Enhanced Grunt 10028 | -5/Cetus | Manufactured an Enhanced Grunt 10053 | -5/Cetus | Manufactured an Enhanced Grunt 10131 | -5/Cetus | Escorted A7 to Cetus Mainframe 10158 | -5/Cetus | Discovered new exit (range 16) 10212 | -5/Cetus | Spotted Cetus Guard 10212 | -5/Cetus | Spotted Cetus Guard 10216 | -5/Cetus | Spotted Cetus Guard 10219 | -5/Cetus | Destroyed Cetus Guard 10220 | -5/Cetus | Spotted Cetus Guard 10226 | -5/Cetus | Allies destroyed Cetus Guard 10230 | -5/Cetus | Destroyed Cetus Guard 10237 | -5/Cetus | Allies destroyed Cetus Guard 10253 | -5/Cetus | Discovered new exit (range 16) 10265 | -5/Cetus | Met Revision 17 10415 | -5/Cetus | Entered Archives 10415 | -5/Archives | Accompanied by 16 allies (A7) 10420 | -5/Archives | Received a hacking code to weaken MAIN.C 10462 | -5/Archives | Unable to access archive contents 10468 | -5/Archives | Discovered new exit (range 15) 10481 | -5/Archives | Unable to access archive contents 10485 | -5/Archives | Discovered new exit (range 16) 10499 | -5/Archives | Unable to access archive contents 10503 | -5/Archives | Discovered new exit (range 15) 10516 | -5/Archives | Unable to access archive contents 10627 | -5/Archives | Entered Hub_04(d) 10627 | -5/Hub_04(d) | Accompanied by 13 allies 10644 | -5/Hub_04(d) | Discovered new exit (range 11) 10644 | -5/Hub_04(d) | Discovered new exit (range 13) 10644 | -5/Hub_04(d) | Discovered new exit (range 8) 10738 | -5/Hub_04(d) | Garrison activated, responded to threat 10744 | -5/Hub_04(d) | Found Prototype Device 10744 | -5/Hub_04(d) | Identified Exp. Thermal Shield 10790 | -5/Hub_04(d) | Lost 9 allies 11100 | -5/Hub_04(d) | Network Hub disabled 11244 | -5/Hub_04(d) | Spotted Lightning 11246 | -5/Hub_04(d) | Spotted Lightning 11249 | -5/Hub_04(d) | Spotted Lightning 11264 | -5/Hub_04(d) | Entered Factory 11264 | -4/Factory | Evolved 2 slots: Propulsion x1, Utility x1 11281 | -4/Factory | Lost 3 allies 11368 | -4/Factory | Repaired Hyp. Mass Driver+ 11420 | -4/Factory | Garrison activated, responded to threat 11661 | -4/Factory | Fabricated L-61 Swordsman? 11716 | -4/Factory | P-70 Sage assimilated allied Swordsman 7b 11951 | -4/Factory | Destroyed 7 combat bots 12343 | -4/Factory | Lost 3 parts (2n1w) 12408 | -4/Factory | Cargo convoy interrupted 12409 | -4/Factory | Spotted Executioner 12409 | -4/Factory | Spotted Striker 12419 | -4/Factory | Destroyed Executioner 12419 | -4/Factory | Destroyed Striker 12430 | -4/Factory | Crushed by falling debris 12430 | -4/Factory | System corruption reached 10% 12447 | -4/Factory | Destroyed 11 combat bots 12484 | -4/Factory | Lost 11 parts (1p1n6u3w) 12514 | -4/Factory | First assault squad dispatched 12515 | -4/Factory | Found PL-3XN's Ring of Power 12661 | -4/Factory | Sucked down chute 12661 | -4/Factory | Entered Waste 12667 | -4/Waste | Spotted C-40 Crusher 12676 | -4/Waste | EMP discharged 12678 | -4/Waste | Spotted C-40 Crusher 12690 | -4/Waste | Crushed by Compactor (1 part destroyed, 1 dropped) 12693 | -4/Waste | Spotted C-40 Crusher 12696 | -4/Waste | Crushed by Compactor (1 part destroyed, 1 dropped) 12703 | -4/Waste | Crushed by Compactor (0 parts destroyed, 1 dropped) 12710 | -4/Waste | Spotted C-40 Crusher 12720 | -4/Waste | Spotted C-40 Crusher 12720 | -4/Waste | Spotted C-40 Crusher 12776 | -4/Waste | EMP discharged 12776 | -4/Waste | System corruption reached 30% 12781 | -4/Waste | Discovered new exit (range 11) 12795 | -4/Waste | Entered Factory 13000 | -4/Factory | Build established: Mutant 13024 | -4/Factory | Core integrity fell below 50% 13244 | -4/Factory | Lost 3 parts (1n1u1w) 13272 | -4/Factory | Core integrity fell below 20% 13433 | -4/Factory | Found Quantum Capacitor 13437 | -4/Factory | Discovered new exit (range 6) 13455 | -4/Factory | Entered Research 13455 | -3/Research | Evolved 2 slots: Propulsion x1, Utility x1 13456 | -3/Research | Identified exit to Research 13491 | -3/Research | Identified exit to Quarantine 13601 | -3/Research | Discovered exit to Research (range 9) 13655 | -3/Research | Revision forces began assault on 0b10 13691 | -3/Research | Met up with Revision 17++ 13858 | -3/Research | Spotted B-86 Titan 13887 | -3/Research | Found Prototype Processor 13887 | -3/Research | Identified Exp. Signal Interpreter 13889 | -3/Research | Found Exp. Signal Interpreter 14116 | -3/Research | Found Prototype Launcher 14116 | -3/Research | Identified Hellfire Missile Launcher 14155 | -3/Research | Research terminal network offline 14325 | -3/Research | Entered Quarantine 14421 | -3/Quarantine | Found Fusion Bomb Launcher 15063 | -3/Quarantine | Scanned by Researcher 15091 | -3/Quarantine | Build established: Scavenger-Scout 15168 | -3/Quarantine | Found Alien Artifact 15168 | -3/Quarantine | Identified Terrabomb 15168 | -3/Quarantine | Used Terrabomb 15168 | -3/Quarantine | Discovered exit to Research (range 20) 15401 | -3/Quarantine | Central database locked down 15424 | -3/Quarantine | Found Alien Artifact 15424 | -3/Quarantine | Identified Phase Armor 15471 | -3/Quarantine | Found Alien Artifact 15471 | -3/Quarantine | Identified Phase Redirector 15501 | -3/Quarantine | Found Alien Artifact 15501 | -3/Quarantine | Identified Core Reset Matrix 15501 | -3/Quarantine | Used Core Reset Matrix 15505 | -3/Quarantine | Detected hypermatrix surge 15505 | -3/Quarantine | Sensed 7 artifacts in vicinity 15672 | -3/Quarantine | Discovered exit to Research (range 9) 15688 | -3/Quarantine | Found Subatomic Replicator 15726 | -3/Quarantine | Build established: Hacker-Gladiator 15797 | -3/Quarantine | Found Terrabomb 15813 | -3/Quarantine | Found Sigix Broadsword 15839 | -3/Quarantine | Found Prototype Processor 15839 | -3/Quarantine | Identified Exp. Targeting Computer 16128 | -3/Quarantine | Met incapacitated Sigix Warrior 16128 | -3/Quarantine | Lockdown squad dispatched 16130 | -3/Quarantine | Acquired the access code to the Sigix quarantine chamber 16131 | -3/Quarantine | Unlocked Sigix quarantine chamber 16134 | -3/Quarantine | Found Sigix Containment Pod 16154 | -3/Quarantine | Spotted Lightning 16154 | -3/Quarantine | Spotted Lightning 16154 | -3/Quarantine | Spotted Lightning 16452 | -3/Quarantine | Found Prototype Device 16452 | -3/Quarantine | Identified Adv. Kinecellerator 16468 | -3/Quarantine | Entered Research 16468 | -2/Research | Evolved 2 slots: Utility x1, Weapon x1 16839 | -2/Research | Discovered new exit (range 2) 16840 | -2/Research | Identified exit to Access 16911 | -2/Research | Entered Access 16911 | -1/Access | Evolved 2 slots: Utility x2 17034 | -1/Access | Spotted B-99 Colossus 17038 | -1/Access | Build established: Hacker-Scout 17400 | -1/Access | Build established: Hacker-Gladiator 17639 | -1/Access | Core integrity fell below 50% 17644 | -1/Access | Emitted hypermatrix ping 17648 | -1/Access | Core integrity fell below 20% 17649 | -1/Access | Assembled emerged from beneath the floor 17685 | -1/Access | Used Terrabomb 17685 | -1/Access | Spotted B-99 Colossus 17685 | -1/Access | Destroyed by Swarm Drone with Compact Gauss Rifle Last Messages --------------- 17658_ as-44864 destroyed. 17658_ Slug penetrates Wall. 17658_ Slug penetrates Earth. 17658_ Slug penetrates as-31393. 17658_ as-31393 destroyed. 17658_ Slug penetrates Wall. 17659_ The unstable cave ceiling collapses. 17659_ Imp. Linear Gravjet destroyed. 17660_ Dropped Adv. Dynamic Insulation System. 17662_ Dropped Adv. Remote Datajack. 17663_ Slug penetrates Wall. 17664_ Wall collapses. 17665_ Penetrated by Slug. 17665_ Slug penetrates Wall. 17675_ Q266-x: IFF CHECK FAIL. 17678_ Detected hypermatrix ping. 17683_ Penetrated by Slug. 17685_ Terrabomb activated. 17685_ Penetrated by Slug. 17685_ Adv. System Shield destroyed. Map ----- +----------------------------------------------------+ | ?????????????????????????????????????????????????? | | ?????????????????????????????????????????????????? | | ?????????????????????????????????????????????????? | | ?????????????????????????????????????????????????? | | ?????????????????????????????????????????????????? | | ??????????????????????????#???######?????????????? | | ?????????????????????????? ???" ????????????? | | ?????????????????????????? "??" ???????????? | | ?????????????????????????? "??" ###+####???? | | ?????????????????"???????? "??" ####? | | ?????????????????? ??????? "??" ##"## | | ?????????????????? ??????? "??" # | | ??????????????????? ?????? "??? # | | ??????????????????? """""" "????BB ;;; % " " | | ???????????????????? "??? BB ; ; " "" | | ???????????????????? """" ; ; # G | | ??????##?????????????;;;;;;;;;;;;;;;;;; ; # "" | | ??????#; ??????????? ; # " | | ?????##;p ;;??????????;;; ; + | | ?????# ; ; ???????? ;;;;;;;;;;;;;;;;; # | | ?????#?;p ; ??????? ; ; # | | ?????# ;u + ????? ; ; # | | ?????#;; ; == ????; + + | | ???? ; == ??; ;;;;;# | | ??? ; == # ; # | | ????#;;;;;; ;@ ; ;#### | | ?????# ; ; ; #???? | | ?????# ; ; ; #???? | | ?????# ; ; R ; #???? | | ?????# ; ; n ; #???? | | ?????# ;;;#;;;;;;;;;;;;;;;;;;;n;;+;;;; #???? | | ?????# ?; ; ;;;;;;;;;;;;;; ;# #???? | | ?????## ?? ; ; ; ; ; ?? ###### | | ???????? ; ;;; ; ; ??# | | ???????# ; # /n ; ## | | ???????# ;;;?; ; ; ## " | | ???????## ? ; ; ; ### " | | ????????# ? ; ; ;;;;;### | | ????????## ? ; " ; % # " | | ###########? ;""" ; % # " | | # #??# ; """ ; % # | | # #??## ; " /n + | | # #???### # ; % # ! = | | # #?????#?# ; % # | | # ############;;;;;;;;;; # | | # # ######## === | | # # #?###??# === | | # # x #??????# = = | | # + #??????# ^ | | # # #??????# =/ | +----------------------------------------------------+ Best States ------------- Heat Dissipation 100 Coolant Potential 65 Energy Generation 39 Energy Capacity 875 Matter Stores 300 Matter Capacity 300 Sight Range 23 Robot Scan Range 16 Terrain Scan Density 10 Jamming Range 16 EM Shielding 4 Corruption Block 20 Armor Coverage 1175 Resistance: TH 30 Core Shielding 30 Propulsion Shielding 66 Melee Speed Boost 50 Phase Shifting 15 Evasion (%) 70 Targeting Accuracy 12 Melee Accuracy 8 Target Analysis 11 Core Analysis 6 Armor Integrity Analysis 40 Matter Filtering 50 Force Boost 30 Offensive Hacking 22 Defensive Hacking 28 Authchip Count 1 Item Schematics ----------------- Lrn. Phase Cannon | -3/Quarantine | Archive Proton Burst Cannon | -3/Quarantine | Archive Exp. Thermal Shield | -3/Quarantine | Archive Electron Diverter | -3/Quarantine | Archive Robot Schematics ------------------ A-15 Conveyor | -3/Quarantine | Archive Fabricated ------------ L-61 Swordsman | x3 | -4/Factory | Preloaded Repaired ---------- Hyp. Mass Driver | 5% | -4/Factory Studied --------- None Alien Tech Used ----------------- Terrabomb Phase Armor Phase Redirector Core Reset Matrix Sigix Broadsword Achievements -------------- Better Safe Than Exploded Challenges ------------ None Game ------ Seed MeleeGodPendant Manual? 0 Play Time 04:21:04 Cumulative 304.9 hours Start 2025.12.16 @ 20:53:12 End 2025.12.17 @ 01:49:30 Sessions 1 Manual Loads 0 Difficulty Rogue Special Mode None Game No. 111 Rogue 111 Adventurer 0 Explorer 0 Win Type - Total 2 Types 1/0/0/0/0/0/0/0/0/1 Lore% 74 Gallery% 69 Achievement% 58 Wizard Run 0 Options --------- Layout 1 ASCII 0 Keyboard 0 Movement Mouse Keybinds 0 Fullscreen 2 Font 32/SmallcapsGlow Map View 50x35 Zoom Use 0% Tactical HUD 1 Map Filters NONE Filters NONE Steam 1 RUN: bc36735f-e60a-465a-96fa-4c6f66d625fe